[Event "November 21 Early 2023"]
[Site "https://www.chess.com"]
[Date "2023.11.21"]
[Round "11"]
[White "campochess"]
[Black "Tarasova, Viktoriya"]
[Result "1-0"]
[Board "123"]
[TimeControl "180+1"]
[BlackFideId "4175840"]
[WhiteElo "2217"]
[BlackElo "2182"]
[BlackTeam "RUS"]
[WhiteClock "0:00:27"]
[BlackClock "0:00:00"]

1. Nf3 {[%clk 0:02:59]}  Nf6 {[%clk 0:02:59]} 2. b3 {[%clk 0:03:00]}  d5 {[%clk 0:02:58]} 3. Bb2 {[%clk 0:02:59]}  b6 {[%clk 0:02:58]} 4. e3 {[%clk 0:02:58]}  Bb7 {[%clk 0:02:59]} 5. Ne5 {[%clk 0:02:58]}  e6 {[%clk 0:02:59]} 6. Bb5+ {[%clk 0:02:57]}  c6 {[%clk 0:02:59]} 7. Be2 {[%clk 0:02:56]}  Bd6 {[%clk 0:02:59]} 8. f4 {[%clk 0:02:54]}  O-O {[%clk 0:02:59]} 9. O-O {[%clk 0:02:53]}  Nbd7 {[%clk 0:02:59]} 10. d4 {[%clk 0:02:51]}  Ne4 {[%clk 0:02:59]} 11. Nxd7 {[%clk 0:02:44]}  Qxd7 {[%clk 0:02:58]} 12. Nd2 {[%clk 0:02:43]}  Nxd2 {[%clk 0:02:56]} 13. Qxd2 {[%clk 0:02:42]}  f5 {[%clk 0:02:55]} 14. Rf2 {[%clk 0:02:26]}  Kh8 {[%clk 0:02:54]} 15. Kh1 {[%clk 0:02:26]}  Rg8 {[%clk 0:02:54]} 16. Rg1 {[%clk 0:02:25]}  Be7 {[%clk 0:02:53]} 17. g4 {[%clk 0:02:23]}  fxg4 {[%clk 0:02:51]} 18. Rxg4 {[%clk 0:02:20]}  Raf8 {[%clk 0:02:50]} 19. Rfg2 {[%clk 0:02:20]}  Bf6 {[%clk 0:02:50]} 20. Bd3 {[%clk 0:02:18]}  g6 {[%clk 0:02:44]} 21. Ba3 {[%clk 0:02:10]}  Rf7 {[%clk 0:02:43]} 22. Qf2 {[%clk 0:02:04]}  Qc7 {[%clk 0:02:36]} 23. Bb4 {[%clk 0:02:00]}  c5 {[%clk 0:02:35]} 24. Bc3 {[%clk 0:01:59]}  c4 {[%clk 0:02:31]} 25. bxc4 {[%clk 0:01:45]}  dxc4 {[%clk 0:02:30]} 26. Be2 {[%clk 0:01:45]}  h5 {[%clk 0:02:13]} 27. Rg3 {[%clk 0:01:34]}  Bxg2+ {[%clk 0:01:31]} 28. Qxg2 {[%clk 0:01:32]}  Rfg7 {[%clk 0:01:27]} 29. Bf3 {[%clk 0:01:24]}  Qf7 {[%clk 0:01:21]} 30. Be4 {[%clk 0:01:22]}  g5 {[%clk 0:01:19]} 31. f5 {[%clk 0:01:13]}  g4 {[%clk 0:01:13]} 32. fxe6 {[%clk 0:01:08]}  Qxe6 {[%clk 0:01:13]} 33. Bd5 {[%clk 0:01:08]}  Qf5 {[%clk 0:00:51]} 34. e4 {[%clk 0:01:00]}  Qf4 {[%clk 0:00:47]} 35. Bd2 {[%clk 0:00:58]}  Qc7 {[%clk 0:00:42]} 36. e5 {[%clk 0:00:55]}  Bh4 {[%clk 0:00:37]} 37. Bxg8 {[%clk 0:00:54]}  Bxg3 {[%clk 0:00:30]} 38. Qxg3 {[%clk 0:00:46]}  Kxg8 {[%clk 0:00:16]} 39. d5 {[%clk 0:00:46]}  Qb7 {[%clk 0:00:16]} 40. Qg2 {[%clk 0:00:44]}  Rf7 {[%clk 0:00:03]} 41. Qe4 {[%clk 0:00:41]}  Kf8 {[%clk 0:00:02]} 42. e6 {[%clk 0:00:36]}  Rf2 {[%clk 0:00:02]} 43. Bb4+ {[%clk 0:00:35]}  Kg8 {[%clk 0:00:01]} 44. Qg6+ {[%clk 0:00:33]}  Qg7 {[%clk 0:00:01]} 45. Qe8+ {[%clk 0:00:32]}  Kh7 {[%clk 0:00:02]} 46. Qxh5+ {[%clk 0:00:32]}  Qh6 {[%clk 0:00:03]} 47. Qf7+ {[%clk 0:00:28]}  Qg7 {[%clk 0:00:03]} 48. Qh5+ {[%clk 0:00:28]}  Qh6 {[%clk 0:00:03]} 49. Qxh6+ {[%clk 0:00:27]}  Kxh6 {[%clk 0:00:00]} 50. d6 {[%clk 0:00:27]} 1-0

[Event "November 21 Early 2023"]
[Site "https://www.chess.com"]
[Date "2023.11.21"]
[Round "11"]
[White "Matveeva, Olga"]
[Black "udithj22"]
[Result "0-1"]
[Board "124"]
[TimeControl "180+1"]
[WhiteFideId "24107018"]
[WhiteElo "1883"]
[BlackElo "2129"]
[WhiteTeam "RUS"]
[WhiteClock "0:00:11"]
[BlackClock "0:00:18"]

1. d4 {[%clk 0:03:00]}  Nf6 {[%clk 0:02:53]} 2. c4 {[%clk 0:03:01]}  c5 {[%clk 0:02:52]} 3. d5 {[%clk 0:03:00]}  b5 {[%clk 0:02:52]} 4. cxb5 {[%clk 0:03:01]}  a6 {[%clk 0:02:52]} 5. bxa6 {[%clk 0:03:02]}  g6 {[%clk 0:02:51]} 6. Nc3 {[%clk 0:03:02]}  Bg7 {[%clk 0:02:52]} 7. g3 {[%clk 0:03:02]}  O-O {[%clk 0:02:52]} 8. Bg2 {[%clk 0:03:02]}  d6 {[%clk 0:02:52]} 9. Nf3 {[%clk 0:03:03]}  Nfd7 {[%clk 0:02:43]} 10. O-O {[%clk 0:03:00]}  Nb6 {[%clk 0:02:39]} 11. e4 {[%clk 0:02:34]}  Bxa6 {[%clk 0:02:38]} 12. Re1 {[%clk 0:02:34]}  N8d7 {[%clk 0:02:34]} 13. Bf4 {[%clk 0:02:32]}  Nc4 {[%clk 0:02:33]} 14. Qc2 {[%clk 0:02:28]}  Qa5 {[%clk 0:02:18]} 15. Bd2 {[%clk 0:02:08]}  Rfb8 {[%clk 0:02:12]} 16. Rab1 {[%clk 0:02:04]}  Nxd2 {[%clk 0:01:55]} 17. Nxd2 {[%clk 0:02:01]}  Ne5 {[%clk 0:01:53]} 18. Bf1 {[%clk 0:01:52]}  Qb4 {[%clk 0:01:29]} 19. a3 {[%clk 0:01:39]}  Qd4 {[%clk 0:01:26]} 20. Kg2 {[%clk 0:01:12]}  Bd3 {[%clk 0:01:04]} 21. Bxd3 {[%clk 0:01:10]}  Nxd3 {[%clk 0:01:03]} 22. Re2 {[%clk 0:00:57]}  Nxb2 {[%clk 0:01:03]} 23. Rxb2 {[%clk 0:00:51]}  Rxb2 {[%clk 0:00:45]} 24. Qxb2 {[%clk 0:00:50]}  Qxc3 {[%clk 0:00:45]} 25. Qb7 {[%clk 0:00:35]}  Qxa3 {[%clk 0:00:39]} 26. Qxe7 {[%clk 0:00:31]}  Qd3 {[%clk 0:00:39]} 27. Qb7 {[%clk 0:00:21]}  Ra3 {[%clk 0:00:36]} 28. Re3 {[%clk 0:00:19]}  Qa6 {[%clk 0:00:27]} 29. Qb8+ {[%clk 0:00:17]}  Bf8 {[%clk 0:00:26]} 30. Rxa3 {[%clk 0:00:17]}  Qxa3 {[%clk 0:00:27]} 31. Nc4 {[%clk 0:00:17]}  Qa6 {[%clk 0:00:20]} 32. e5 {[%clk 0:00:16]}  Qxc4 {[%clk 0:00:18]} 33. exd6 {[%clk 0:00:14]}  Qxd5+ {[%clk 0:00:18]} 34. Kg1 {[%clk 0:00:15]}  Qxd6 {[%clk 0:00:19]} 35. Qc8 {[%clk 0:00:14]}  Qd4 {[%clk 0:00:19]} 36. h4 {[%clk 0:00:14]}  c4 {[%clk 0:00:19]} 37. Kg2 {[%clk 0:00:14]}  Qd3 {[%clk 0:00:20]} 38. h5 {[%clk 0:00:15]}  c3 {[%clk 0:00:18]} 39. h6 {[%clk 0:00:11]}  c2 {[%clk 0:00:18]} 0-1

[Event "November 21 Early 2023"]
[Site "https://www.chess.com"]
[Date "2023.11.21"]
[Round "11"]
[White "Sadubayev, Airat"]
[Black "Semenova, Alina"]
[Result "1-0"]
[Board "125"]
[TimeControl "180+1"]
[WhiteFideId "13713264"]
[BlackFideId "24113875"]
[WhiteElo "2137"]
[BlackElo "1827"]
[WhiteTeam "KAZ"]
[BlackTeam "RUS"]
[WhiteClock "0:00:57"]
[BlackClock "0:00:35"]

1. d4 {[%clk 0:02:56]}  d5 {[%clk 0:02:53]} 2. c4 {[%clk 0:02:56]}  e6 {[%clk 0:02:51]} 3. Nf3 {[%clk 0:02:55]}  Nf6 {[%clk 0:02:46]} 4. Nc3 {[%clk 0:02:55]}  Be7 {[%clk 0:02:46]} 5. Bf4 {[%clk 0:02:55]}  O-O {[%clk 0:02:46]} 6. e3 {[%clk 0:02:54]}  Nbd7 {[%clk 0:02:46]} 7. c5 {[%clk 0:02:52]}  c6 {[%clk 0:02:46]} 8. b4 {[%clk 0:02:45]}  Nh5 {[%clk 0:02:45]} 9. Bg3 {[%clk 0:02:34]}  Nxg3 {[%clk 0:02:45]} 10. hxg3 {[%clk 0:02:34]}  Bf6 {[%clk 0:02:42]} 11. Bd3 {[%clk 0:02:33]}  g6 {[%clk 0:02:29]} 12. a4 {[%clk 0:02:16]}  e5 {[%clk 0:02:28]} 13. Qc2 {[%clk 0:02:04]}  e4 {[%clk 0:02:27]} 14. Bxe4 {[%clk 0:02:02]}  dxe4 {[%clk 0:02:27]} 15. Nxe4 {[%clk 0:02:03]}  Re8 {[%clk 0:02:16]} 16. Nd6 {[%clk 0:02:01]}  Re6 {[%clk 0:02:12]} 17. O-O-O {[%clk 0:01:54]}  Be7 {[%clk 0:02:09]} 18. Nc4 {[%clk 0:01:51]}  b5 {[%clk 0:01:37]} 19. axb5 {[%clk 0:01:40]}  cxb5 {[%clk 0:01:35]} 20. Na5 {[%clk 0:01:36]}  Ra6 {[%clk 0:01:25]} 21. Kb2 {[%clk 0:01:25]}  Qc7 {[%clk 0:01:01]} 22. Qe4 {[%clk 0:01:21]}  Rb8 {[%clk 0:00:48]} 23. Qxe7 {[%clk 0:01:16]}  Rxa5 {[%clk 0:00:43]} 24. Qe8+ {[%clk 0:01:04]}  Kg7 {[%clk 0:00:42]} 25. Rxh7+ {[%clk 0:00:59]}  Kxh7 {[%clk 0:00:36]} 26. Rh1+ {[%clk 0:00:58]}  Kg7 {[%clk 0:00:35]} 27. Qh8# {[%clk 0:00:57]} 1-0

[Event "November 21 Early 2023"]
[Site "https://www.chess.com"]
[Date "2023.11.21"]
[Round "11"]
[White "Seletsky, Grigory"]
[Black "Figorito, Nick"]
[Result "1-0"]
[Board "126"]
[TimeControl "180+1"]
[WhiteFideId "14112191"]
[BlackFideId "30923689"]
[WhiteElo "2482"]
[BlackElo "2368"]
[WhiteTeam "UKR"]
[BlackTeam "USA"]
[WhiteClock "0:01:58"]
[BlackClock "0:01:04"]

1. b3 {[%clk 0:02:57]}  Nf6 {[%clk 0:03:00]} 2. Bb2 {[%clk 0:02:58]}  g6 {[%clk 0:02:57]} 3. Bxf6 {[%clk 0:02:58]}  exf6 {[%clk 0:02:58]} 4. d4 {[%clk 0:02:57]}  Bg7 {[%clk 0:02:59]} 5. e3 {[%clk 0:02:56]}  O-O {[%clk 0:03:00]} 6. g3 {[%clk 0:02:56]}  d5 {[%clk 0:02:59]} 7. Bg2 {[%clk 0:02:56]}  c6 {[%clk 0:02:59]} 8. Ne2 {[%clk 0:02:57]}  f5 {[%clk 0:03:00]} 9. O-O {[%clk 0:02:57]}  Nd7 {[%clk 0:03:00]} 10. c4 {[%clk 0:02:53]}  dxc4 {[%clk 0:02:58]} 11. bxc4 {[%clk 0:02:52]}  Nf6 {[%clk 0:02:59]} 12. Nd2 {[%clk 0:02:50]}  Be6 {[%clk 0:02:49]} 13. Rb1 {[%clk 0:02:48]}  Rb8 {[%clk 0:02:45]} 14. Qc2 {[%clk 0:02:46]}  Qa5 {[%clk 0:02:37]} 15. Nb3 {[%clk 0:02:42]}  Qc7 {[%clk 0:02:26]} 16. Rfc1 {[%clk 0:02:41]}  Qe7 {[%clk 0:02:15]} 17. Nf4 {[%clk 0:02:33]}  Ne4 {[%clk 0:02:10]} 18. Bxe4 {[%clk 0:02:28]}  fxe4 {[%clk 0:02:11]} 19. Qxe4 {[%clk 0:02:28]}  Rbe8 {[%clk 0:01:59]} 20. Nxe6 {[%clk 0:02:28]}  fxe6 {[%clk 0:02:00]} 21. c5 {[%clk 0:02:19]}  Qf7 {[%clk 0:01:47]} 22. f4 {[%clk 0:02:15]}  g5 {[%clk 0:01:39]} 23. Nd2 {[%clk 0:02:11]}  gxf4 {[%clk 0:01:39]} 24. gxf4 {[%clk 0:02:11]}  Kh8 {[%clk 0:01:36]} 25. Nf3 {[%clk 0:02:10]}  Rg8 {[%clk 0:01:34]} 26. Kh1 {[%clk 0:02:09]}  Re7 {[%clk 0:01:26]} 27. Rg1 {[%clk 0:02:08]}  Qh5 {[%clk 0:01:26]} 28. Rg5 {[%clk 0:02:05]}  Qh6 {[%clk 0:01:23]} 29. Rbg1 {[%clk 0:02:05]}  Rb8 {[%clk 0:01:18]} 30. R1g4 {[%clk 0:01:59]}  Qh3 {[%clk 0:01:11]} 31. Rh4 {[%clk 0:01:59]}  Qf1+ {[%clk 0:01:04]} 32. Rg1 {[%clk 0:01:58]} 1-0

[Event "November 21 Early 2023"]
[Site "https://www.chess.com"]
[Date "2023.11.21"]
[Round "11"]
[White "alfianasybullina"]
[Black "Novik, Maxim"]
[Result "1/2-1/2"]
[Board "128"]
[TimeControl "180+1"]
[BlackFideId "4102924"]
[WhiteElo "2321"]
[BlackElo "2306"]
[BlackTeam "LTU"]
[WhiteClock "0:00:42"]
[BlackClock "0:00:41"]

1. d4 {[%clk 0:03:00]}  Nf6 {[%clk 0:02:58]} 2. Nf3 {[%clk 0:03:01]}  g6 {[%clk 0:02:58]} 3. Nc3 {[%clk 0:02:59]}  d5 {[%clk 0:02:57]} 4. Bf4 {[%clk 0:02:58]}  Bg7 {[%clk 0:02:55]} 5. e3 {[%clk 0:02:59]}  O-O {[%clk 0:02:55]} 6. h3 {[%clk 0:02:59]}  c5 {[%clk 0:02:52]} 7. Bd3 {[%clk 0:02:59]}  cxd4 {[%clk 0:02:48]} 8. exd4 {[%clk 0:02:59]}  Nc6 {[%clk 0:02:48]} 9. O-O {[%clk 0:02:58]}  Nb4 {[%clk 0:02:44]} 10. Be2 {[%clk 0:02:55]}  Bf5 {[%clk 0:02:42]} 11. Rc1 {[%clk 0:02:55]}  Ne4 {[%clk 0:02:39]} 12. a3 {[%clk 0:02:48]}  Nxc3 {[%clk 0:02:37]} 13. bxc3 {[%clk 0:02:49]}  Na2 {[%clk 0:02:37]} 14. Ra1 {[%clk 0:02:42]}  Nxc3 {[%clk 0:02:37]} 15. Qd2 {[%clk 0:02:42]}  Nxe2+ {[%clk 0:02:35]} 16. Qxe2 {[%clk 0:02:43]}  Rc8 {[%clk 0:02:35]} 17. Rfc1 {[%clk 0:02:41]}  Be4 {[%clk 0:02:21]} 18. Be5 {[%clk 0:02:35]}  Bxf3 {[%clk 0:02:19]} 19. Qxf3 {[%clk 0:02:32]}  Bxe5 {[%clk 0:02:19]} 20. dxe5 {[%clk 0:02:33]}  Rc4 {[%clk 0:02:18]} 21. Qb3 {[%clk 0:02:23]}  Qc7 {[%clk 0:02:14]} 22. Rab1 {[%clk 0:02:21]}  b6 {[%clk 0:02:14]} 23. e6 {[%clk 0:02:15]}  fxe6 {[%clk 0:02:13]} 24. Re1 {[%clk 0:02:15]}  Rf6 {[%clk 0:02:13]} 25. Re2 {[%clk 0:02:12]}  Rc3 {[%clk 0:02:10]} 26. Qb2 {[%clk 0:01:42]}  Qc5 {[%clk 0:02:09]} 27. Rbe1 {[%clk 0:01:38]}  Rxa3 {[%clk 0:02:04]} 28. Qe5 {[%clk 0:01:25]}  Kf7 {[%clk 0:02:02]} 29. Qb8 {[%clk 0:01:25]}  Kg7 {[%clk 0:01:50]} 30. Rxe6 {[%clk 0:01:17]}  Qxf2+ {[%clk 0:01:47]} 31. Kh2 {[%clk 0:01:15]}  Qf4+ {[%clk 0:01:40]} 32. Qxf4 {[%clk 0:01:13]}  Rxf4 {[%clk 0:01:40]} 33. Rxe7+ {[%clk 0:01:14]}  Rf7 {[%clk 0:01:40]} 34. R7e5 {[%clk 0:01:09]}  Rc3 {[%clk 0:01:35]} 35. R1e2 {[%clk 0:01:08]}  Rc5 {[%clk 0:01:35]} 36. Re8 {[%clk 0:01:06]}  h5 {[%clk 0:01:31]} 37. Ra8 {[%clk 0:01:06]}  Rfc7 {[%clk 0:01:16]} 38. Rd2 {[%clk 0:01:04]}  a5 {[%clk 0:01:11]} 39. Rb8 {[%clk 0:01:02]}  b5 {[%clk 0:01:09]} 40. Rf2 {[%clk 0:00:57]}  b4 {[%clk 0:01:09]} 41. Rff8 {[%clk 0:00:48]}  Rxc2 {[%clk 0:01:06]} 42. Rg8+ {[%clk 0:00:48]}  Kf6 {[%clk 0:01:06]} 43. Rgf8+ {[%clk 0:00:48]}  Rf7 {[%clk 0:01:05]} 44. Rb6+ {[%clk 0:00:47]}  Kg7 {[%clk 0:01:05]} 45. Ra8 {[%clk 0:00:46]}  Rc5 {[%clk 0:01:03]} 46. Raa6 {[%clk 0:00:44]}  d4 {[%clk 0:00:53]} 47. Rxg6+ {[%clk 0:00:44]}  Kf8 {[%clk 0:00:53]} 48. Ra8+ {[%clk 0:00:44]}  Ke7 {[%clk 0:00:53]} 49. Ra7+ {[%clk 0:00:43]}  Kf8 {[%clk 0:00:49]} 50. Ra8+ {[%clk 0:00:44]}  Ke7 {[%clk 0:00:49]} 51. Ra7+ {[%clk 0:00:43]}  Kf8 {[%clk 0:00:41]} 52. Ra8+ {[%clk 0:00:42]} 1/2-1/2

[Event "November 21 Early 2023"]
[Site "https://www.chess.com"]
[Date "2023.11.21"]
[Round "11"]
[White "Toktomushev, Teimur"]
[Black "Rose, Felix"]
[Result "1-0"]
[Board "129"]
[TimeControl "180+1"]
[WhiteFideId "14176726"]
[BlackFideId "5105722"]
[WhiteElo "2198"]
[BlackElo "2039"]
[WhiteTeam "UKR"]
[BlackTeam "MEX"]
[WhiteClock "0:00:12"]
[BlackClock "0:00:39"]

1. d4 {[%clk 0:03:00]}  d5 {[%clk 0:02:59]} 2. c4 {[%clk 0:03:01]}  e6 {[%clk 0:02:59]} 3. Nc3 {[%clk 0:03:01]}  Nf6 {[%clk 0:02:56]} 4. cxd5 {[%clk 0:03:02]}  exd5 {[%clk 0:02:56]} 5. Bg5 {[%clk 0:03:02]}  c6 {[%clk 0:02:57]} 6. e3 {[%clk 0:03:03]}  Be7 {[%clk 0:02:57]} 7. Bd3 {[%clk 0:03:03]}  Nbd7 {[%clk 0:02:58]} 8. Qc2 {[%clk 0:03:03]}  h6 {[%clk 0:02:58]} 9. Bh4 {[%clk 0:03:03]}  Nh5 {[%clk 0:02:59]} 10. Bxe7 {[%clk 0:03:03]}  Qxe7 {[%clk 0:03:00]} 11. Nge2 {[%clk 0:03:03]}  Nb6 {[%clk 0:02:59]} 12. O-O {[%clk 0:03:01]}  O-O {[%clk 0:02:57]} 13. Rae1 {[%clk 0:03:02]}  Bd7 {[%clk 0:02:55]} 14. Nc1 {[%clk 0:03:01]}  Qg5 {[%clk 0:02:51]} 15. f3 {[%clk 0:02:53]}  Rae8 {[%clk 0:02:48]} 16. Qf2 {[%clk 0:02:51]}  Nf6 {[%clk 0:02:40]} 17. Nb3 {[%clk 0:02:30]}  Bf5 {[%clk 0:02:38]} 18. e4 {[%clk 0:02:12]}  dxe4 {[%clk 0:02:23]} 19. fxe4 {[%clk 0:02:13]}  Be6 {[%clk 0:02:21]} 20. Nc5 {[%clk 0:02:10]}  Ng4 {[%clk 0:02:20]} 21. Qg3 {[%clk 0:01:23]}  Bc8 {[%clk 0:02:19]} 22. e5 {[%clk 0:01:02]}  h5 {[%clk 0:01:41]} 23. N3e4 {[%clk 0:00:35]}  Qd8 {[%clk 0:01:40]} 24. Nd6 {[%clk 0:00:33]}  Re7 {[%clk 0:01:27]} 25. h3 {[%clk 0:00:19]}  Nh6 {[%clk 0:01:18]} 26. Rf6 {[%clk 0:00:12]}  h4 {[%clk 0:01:16]} 27. Qg5 {[%clk 0:00:06]}  Rd7 {[%clk 0:00:59]} 28. Nxd7 {[%clk 0:00:05]}  Nxd7 {[%clk 0:01:00]} 29. Nxc8 {[%clk 0:00:03]}  Nxf6 {[%clk 0:00:53]} 30. exf6 {[%clk 0:00:03]}  Qxd4+ {[%clk 0:00:50]} 31. Kh1 {[%clk 0:00:02]}  Qxf6 {[%clk 0:00:40]} 32. Qxf6 {[%clk 0:00:03]}  gxf6 {[%clk 0:00:40]} 33. Ne7+ {[%clk 0:00:04]}  Kg7 {[%clk 0:00:40]} 34. Nf5+ {[%clk 0:00:04]}  Nxf5 {[%clk 0:00:40]} 35. Bxf5 {[%clk 0:00:05]}  Rd8 {[%clk 0:00:40]} 36. Re7 {[%clk 0:00:04]}  Rd5 {[%clk 0:00:35]} 37. Bc8 {[%clk 0:00:02]}  b6 {[%clk 0:00:34]} 38. Rxa7 {[%clk 0:00:02]}  Rd1+ {[%clk 0:00:34]} 39. Kh2 {[%clk 0:00:02]}  Rd2 {[%clk 0:00:35]} 40. b3 {[%clk 0:00:03]}  f5 {[%clk 0:00:33]} 41. Bxf5 {[%clk 0:00:03]}  Kf6 {[%clk 0:00:34]} 42. Bg4 {[%clk 0:00:03]}  Ke5 {[%clk 0:00:34]} 43. Bf3 {[%clk 0:00:04]}  c5 {[%clk 0:00:34]} 44. Rxf7 {[%clk 0:00:04]}  Rxa2 {[%clk 0:00:34]} 45. Rb7 {[%clk 0:00:04]}  Ra6 {[%clk 0:00:34]} 46. Rh7 {[%clk 0:00:04]}  b5 {[%clk 0:00:34]} 47. Rxh4 {[%clk 0:00:03]}  Ra3 {[%clk 0:00:33]} 48. Rh5+ {[%clk 0:00:03]}  Kd4 {[%clk 0:00:34]} 49. Rd5+ {[%clk 0:00:03]}  Kc3 {[%clk 0:00:34]} 50. Rxc5+ {[%clk 0:00:04]}  Kb4 {[%clk 0:00:35]} 51. Rh5 {[%clk 0:00:02]}  Rxb3 {[%clk 0:00:34]} 52. Be2 {[%clk 0:00:03]}  Ka4 {[%clk 0:00:33]} 53. Rxb5 {[%clk 0:00:04]}  Rxb5 {[%clk 0:00:32]} 54. Bxb5+ {[%clk 0:00:04]}  Kxb5 {[%clk 0:00:33]} 55. g4 {[%clk 0:00:04]}  Kb6 {[%clk 0:00:34]} 56. Kg3 {[%clk 0:00:05]}  Kc7 {[%clk 0:00:35]} 57. Kf4 {[%clk 0:00:06]}  Kd7 {[%clk 0:00:36]} 58. Kf5 {[%clk 0:00:06]}  Ke7 {[%clk 0:00:37]} 59. Kg6 {[%clk 0:00:07]}  Kf8 {[%clk 0:00:37]} 60. h4 {[%clk 0:00:08]}  Kg8 {[%clk 0:00:38]} 61. h5 {[%clk 0:00:09]}  Kh8 {[%clk 0:00:39]} 62. g5 {[%clk 0:00:08]}  Kg8 {[%clk 0:00:40]} 63. Kf6 {[%clk 0:00:08]}  Kh8 {[%clk 0:00:41]} 64. Kf7 {[%clk 0:00:09]}  Kh7 {[%clk 0:00:41]} 65. g6+ {[%clk 0:00:10]}  Kh8 {[%clk 0:00:38]} 66. g7+ {[%clk 0:00:11]}  Kh7 {[%clk 0:00:39]} 67. g8=Q+ {[%clk 0:00:11]}  Kh6 {[%clk 0:00:39]} 68. Qg6# {[%clk 0:00:12]} 1-0

[Event "November 21 Early 2023"]
[Site "https://www.chess.com"]
[Date "2023.11.21"]
[Round "11"]
[White "HeroWilczek"]
[Black "Martin, Lewis"]
[Result "1-0"]
[Board "130"]
[TimeControl "180+1"]
[BlackFideId "410551"]
[WhiteElo "2442"]
[BlackElo "2145"]
[BlackTeam "ENG"]
[WhiteClock "0:00:54"]
[BlackClock "0:00:51"]

1. e4 {[%clk 0:03:00]}  c6 {[%clk 0:03:00]} 2. g3 {[%clk 0:02:57]}  d5 {[%clk 0:03:00]} 3. exd5 {[%clk 0:02:57]}  cxd5 {[%clk 0:03:00]} 4. Bg2 {[%clk 0:02:58]}  Nf6 {[%clk 0:02:59]} 5. Ne2 {[%clk 0:02:58]}  Nc6 {[%clk 0:02:55]} 6. O-O {[%clk 0:02:59]}  Bg4 {[%clk 0:02:42]} 7. h3 {[%clk 0:02:57]}  Bh5 {[%clk 0:02:41]} 8. c3 {[%clk 0:02:54]}  Bg6 {[%clk 0:02:42]} 9. d4 {[%clk 0:02:43]}  e6 {[%clk 0:02:42]} 10. Bf4 {[%clk 0:02:42]}  Bd6 {[%clk 0:02:43]} 11. Nd2 {[%clk 0:02:42]}  O-O {[%clk 0:02:41]} 12. Re1 {[%clk 0:02:42]}  Rc8 {[%clk 0:02:37]} 13. Qb3 {[%clk 0:02:37]}  Bxf4 {[%clk 0:02:35]} 14. Nxf4 {[%clk 0:02:37]}  Na5 {[%clk 0:02:35]} 15. Qa4 {[%clk 0:02:32]}  b6 {[%clk 0:02:33]} 16. h4 {[%clk 0:02:19]}  Nh5 {[%clk 0:02:19]} 17. Nxg6 {[%clk 0:02:10]}  hxg6 {[%clk 0:02:17]} 18. Nf3 {[%clk 0:02:08]}  Nf6 {[%clk 0:02:14]} 19. Ne5 {[%clk 0:02:07]}  Nd7 {[%clk 0:02:08]} 20. Bf1 {[%clk 0:02:02]}  Nxe5 {[%clk 0:02:07]} 21. Rxe5 {[%clk 0:02:03]}  Qc7 {[%clk 0:01:58]} 22. Rae1 {[%clk 0:02:03]}  Rfe8 {[%clk 0:01:55]} 23. Qd1 {[%clk 0:01:58]}  Nc4 {[%clk 0:01:50]} 24. Bxc4 {[%clk 0:01:53]}  Qxc4 {[%clk 0:01:50]} 25. h5 {[%clk 0:01:48]}  Qxa2 {[%clk 0:01:38]} 26. hxg6 {[%clk 0:01:45]}  Qxb2 {[%clk 0:01:38]} 27. gxf7+ {[%clk 0:01:39]}  Kxf7 {[%clk 0:01:39]} 28. Qh5+ {[%clk 0:01:38]}  Kf6 {[%clk 0:01:33]} 29. R1e3 {[%clk 0:01:05]}  Qb1+ {[%clk 0:01:21]} 30. Kg2 {[%clk 0:01:04]}  g6 {[%clk 0:00:51]} 31. Qh7 {[%clk 0:00:54]} 1-0

[Event "November 21 Early 2023"]
[Site "https://www.chess.com"]
[Date "2023.11.21"]
[Round "11"]
[White "pinguino120"]
[Black "Marin Pincheira, Carlos"]
[Result "1-0"]
[Board "135"]
[TimeControl "180+1"]
[BlackFideId "3407543"]
[WhiteElo "2238"]
[BlackElo "2080"]
[BlackTeam "CHI"]
[WhiteClock "0:00:38"]
[BlackClock "0:00:00"]

1. d4 {[%clk 0:03:00]}  d5 {[%clk 0:02:55]} 2. c4 {[%clk 0:03:00]}  e6 {[%clk 0:02:56]} 3. Nf3 {[%clk 0:02:59]}  Be7 {[%clk 0:02:55]} 4. g3 {[%clk 0:02:56]}  Nf6 {[%clk 0:02:48]} 5. Bg2 {[%clk 0:02:56]}  O-O {[%clk 0:02:48]} 6. O-O {[%clk 0:02:56]}  dxc4 {[%clk 0:02:32]} 7. Qa4 {[%clk 0:02:55]}  a6 {[%clk 0:02:31]} 8. Qxc4 {[%clk 0:02:54]}  b5 {[%clk 0:02:31]} 9. Qc2 {[%clk 0:02:54]}  Bb7 {[%clk 0:02:31]} 10. Bf4 {[%clk 0:02:49]}  Nd5 {[%clk 0:02:21]} 11. Nbd2 {[%clk 0:02:46]}  Nxf4 {[%clk 0:02:19]} 12. gxf4 {[%clk 0:02:47]}  Nd7 {[%clk 0:02:12]} 13. e3 {[%clk 0:02:43]}  c5 {[%clk 0:02:11]} 14. Rad1 {[%clk 0:02:40]}  cxd4 {[%clk 0:02:09]} 15. Nxd4 {[%clk 0:02:40]}  Bxg2 {[%clk 0:02:09]} 16. Kxg2 {[%clk 0:02:41]}  Rc8 {[%clk 0:01:59]} 17. Qb1 {[%clk 0:02:37]}  Nc5 {[%clk 0:01:40]} 18. N2f3 {[%clk 0:02:35]}  Qd5 {[%clk 0:01:19]} 19. Nxb5 {[%clk 0:02:25]}  Qh5 {[%clk 0:01:16]} 20. Nbd4 {[%clk 0:02:20]}  Rfd8 {[%clk 0:01:03]} 21. Ne5 {[%clk 0:02:16]}  Rd5 {[%clk 0:00:58]} 22. b4 {[%clk 0:01:59]}  Nd7 {[%clk 0:00:46]} 23. Nxd7 {[%clk 0:01:51]}  Rxd7 {[%clk 0:00:45]} 24. Qe4 {[%clk 0:01:31]}  Bxb4 {[%clk 0:00:26]} 25. Rc1 {[%clk 0:01:20]}  Rxc1 {[%clk 0:00:11]} 26. Rxc1 {[%clk 0:01:21]}  Qd5 {[%clk 0:00:08]} 27. Rc8+ {[%clk 0:01:08]}  Bf8 {[%clk 0:00:06]} 28. Qxd5 {[%clk 0:01:06]}  Rxd5 {[%clk 0:00:05]} 29. Nc6 {[%clk 0:01:05]}  Rd7 {[%clk 0:00:06]} 30. Ra8 {[%clk 0:01:00]}  g6 {[%clk 0:00:02]} 31. Rxa6 {[%clk 0:00:57]}  Kg7 {[%clk 0:00:02]} 32. Ne5 {[%clk 0:00:57]}  Rb7 {[%clk 0:00:03]} 33. Ra8 {[%clk 0:00:56]}  Bd6 {[%clk 0:00:03]} 34. Nf3 {[%clk 0:00:54]}  h6 {[%clk 0:00:03]} 35. Nd4 {[%clk 0:00:54]}  Bc5 {[%clk 0:00:03]} 36. Nb3 {[%clk 0:00:53]}  Bd6 {[%clk 0:00:02]} 37. Kf3 {[%clk 0:00:54]}  Be7 {[%clk 0:00:03]} 38. Nd4 {[%clk 0:00:53]}  Bf6 {[%clk 0:00:03]} 39. Ke4 {[%clk 0:00:52]}  Rb4 {[%clk 0:00:03]} 40. a4 {[%clk 0:00:51]}  Bxd4 {[%clk 0:00:02]} 41. exd4 {[%clk 0:00:52]}  Kf6 {[%clk 0:00:03]} 42. a5 {[%clk 0:00:52]}  Ra4 {[%clk 0:00:03]} 43. a6 {[%clk 0:00:52]}  h5 {[%clk 0:00:04]} 44. Kd3 {[%clk 0:00:50]}  Kf5 {[%clk 0:00:03]} 45. Kc3 {[%clk 0:00:48]}  Ke4 {[%clk 0:00:04]} 46. Kb3 {[%clk 0:00:48]}  Ra5 {[%clk 0:00:03]} 47. Kb4 {[%clk 0:00:48]}  Ra1 {[%clk 0:00:03]} 48. Kb5 {[%clk 0:00:49]}  Kxd4 {[%clk 0:00:04]} 49. Kb6 {[%clk 0:00:48]}  Ke4 {[%clk 0:00:04]} 50. Rf8 {[%clk 0:00:46]}  f5 {[%clk 0:00:05]} 51. a7 {[%clk 0:00:45]}  Rb1+ {[%clk 0:00:04]} 52. Kc6 {[%clk 0:00:44]}  Ra1 {[%clk 0:00:03]} 53. a8=Q {[%clk 0:00:43]}  Rxa8 {[%clk 0:00:04]} 54. Rxa8 {[%clk 0:00:43]}  Kxf4 {[%clk 0:00:05]} 55. Kd6 {[%clk 0:00:43]}  e5 {[%clk 0:00:05]} 56. Ra2 {[%clk 0:00:40]}  e4 {[%clk 0:00:04]} 57. Ke6 {[%clk 0:00:39]}  g5 {[%clk 0:00:05]} 58. Ra5 {[%clk 0:00:38]}  Kg4 {[%clk 0:00:00]} 59. Rxf5 {[%clk 0:00:38]} 1-0